bitfinex/quotes_ETHUSD_20241119
["timestamp","ask_amount","ask_price","bid_price","bid_amount"]
[1731982223816,0.8189,3153.7,3153.1,0.317]
[1731982223817,0.03149545,3153.2,3153.1,0.317]
[1731982224118,0.8189,3153.7,3153.1,0.317]
[1731982224119,3.17089,3153.7,3153.4,0.317]
[1731982224597,3.20258034,3153.6,3153.4,0.317]
[1731982225809,3.20258034,3153.6,3153.4,0.317]
[1731982226179,3.20258034,3153.6,3153.3,0.317]
[1731982226619,0.03159034,3153.6,3153.3,0.317]
[1731982226972,0.03159034,3153.6,3153.3,3.91858439]
[1731982227186,3.1707,3153.9,3153.5,0.317]
[1731982227677,0.03164424,3153.8,3153.5,0.317]
[1731982228416,0.03164424,3153.8,3153.7,3.48787]
[1731982228716,5.46171097,3154.6,3153.7,1.1068]
[1731982228717,3.0,3154.6,3153.7,1.1068]
[1731982228901,3.17014,3154.5,3153.9,0.317]
[1731982229288,3.17014,3154.5,3153.9,3.48767]
[1731982229684,3.17014,3154.5,3153.9,0.317]
[1731982229902,3.1702,3154.4,3153.8,0.317]
[1731982230098,3.1702,3154.4,3153.8,3.94620596]
[1731982230779,3.1702,3154.4,3153.8,7.11689596]
[1731982231212,3.1702,3154.4,3153.8,3.94615596]
[1731982233016,3.17013,3154.5,3154.0,0.317]
[1731982233355,3.98644,3154.7,3154.2,1.1068]
[1731982234530,3.17001,3154.6,3154.2,1.1068]
[1731982234872,3.17019,3154.4,3154.2,1.1068]
[1731982235224,3.17019,3154.4,3153.8,3.62915596]
[1731982235225,3.17019,3154.4,3154.1,0.317]
[1731982235629,3.23376358,3154.3,3154.1,0.317]
[1731982235813,3.17034,3154.3,3154.1,0.317]
[1731982236360,3.17034,3154.3,3153.8,1.1068]
[1731982236561,3.17037,3154.2,3153.8,1.1068]
[1731982237731,3.1705,3154.1,3153.8,1.1068]
[1731982238699,3.1705,3154.1,3153.6,0.317]
[1731982238871,3.1705,3154.1,3153.6,0.634105]
[1731982239153,0.796,3154.2,3153.7,0.317]
[1731982239460,3.1705,3154.1,3153.7,0.317]
[1731982240023,0.796,3154.2,3153.7,0.317]
[1731982240321,3.96638,3154.2,3153.7,0.317]
[1731982241026,0.06342358,3154.1,3153.6,0.317]
[1731982241226,3.17078,3153.8,3153.6,0.317]
[1731982242147,0.796,3154.2,3153.7,0.317]
[1731982242364,3.17055,3154.1,3153.9,0.317]
[1731982243381,3.17055,3154.1,3153.6,0.317]
[1731982243564,0.06202536,3154.0,3153.6,0.317]
[1731982243936,3.97272,3153.9,3153.6,0.317]
[1731982244271,3.23279055,3153.8,3153.6,0.317]
[1731982244576,0.06199055,3153.8,3153.4,0.317]
[1731982244737,0.06199055,3153.8,3153.6,0.317]
[1731982244936,3.1705,3154.1,3153.6,0.317]
[1731982245557,0.06203597,3154.0,3153.6,0.317]
[1731982246139,0.06203597,3154.0,3153.6,3.48797]
[1731982246644,0.06203597,3154.0,3153.4,0.317]
[1731982246845,0.06203597,3154.0,3153.4,0.744633]
[1731982247049,0.06203597,3154.0,3153.6,0.317]
[1731982248674,0.06203597,3154.0,3153.6,3.48797]
[1731982248872,3.1705,3154.1,3153.5,3.48804]
[1731982249030,0.06203633,3154.0,3153.5,3.48804]
[1731982250092,0.05994503,3153.9,3153.5,3.48804]
[1731982250385,3.1705,3154.1,3153.5,3.48804]
[1731982250598,0.05992591,3153.8,3153.5,3.48804]
[1731982250748,3.1705,3154.1,3153.5,3.48804]
[1731982250953,0.05990248,3153.7,3153.5,3.48804]
[1731982251166,3.1705,3154.1,3153.5,3.48804]
[1731982251384,0.05987832,3153.6,3153.5,3.48804]
[1731982251589,3.1705,3154.1,3153.5,3.48804]
[1731982251963,0.05997205,3154.0,3153.5,3.48804]
[1731982252853,3.17058,3154.0,3153.5,3.48804]
[1731982253083,0.05994718,3153.9,3153.5,3.48804]
[1731982254195,0.05994718,3153.9,3153.5,3.17104]
[1731982254366,0.05994718,3153.9,3153.6,0.317]
[1731982255053,0.05994718,3153.9,3153.8,0.317]
[1731982255250,3.0,3154.3,3153.8,3.48777]
[1731982255453,3.23041034,3154.2,3153.8,0.317]
[1731982255759,0.06002034,3154.2,3153.8,0.317]
[1731982256252,0.05999835,3154.1,3153.8,0.317]
[1731982256580,0.7837,3154.2,3153.8,0.317]
[1731982256759,0.05997492,3154.0,3153.8,0.317]
[1731982256955,0.7837,3154.2,3153.8,0.317]
[1731982257479,0.05797609,3154.1,3153.8,0.317]
[1731982260106,0.05553608,3154.0,3153.8,0.20104782]
[1731982260269,0.05553608,3154.0,3153.8,0.317]
[1731982260464,3.95415,3154.2,3153.8,0.317]
[1731982260670,0.0555595,3154.1,3153.8,0.317]
[1731982261372,0.0555595,3154.1,3153.3,1.17269887]
[1731982261373,3.17064,3154.0,3153.9,0.317]
[1731982261614,3.22617608,3154.0,3153.9,0.317]
[1731982262409,3.22617608,3154.0,3153.6,0.317]
[1731982262720,3.1707,3153.9,3153.6,0.317]
[1731982262870,0.05551265,3153.9,3153.6,0.317]
[1731982263398,0.05551265,3153.9,3153.5,0.317]
[1731982263775,3.17081,3153.8,3153.5,0.317]
[1731982263973,0.7753,3153.7,3153.5,0.317]
[1731982264199,0.05546578,3153.7,3153.5,0.317]
[1731982264536,3.17069,3153.9,3153.5,1.55539489]
[1731982264671,0.05543588,3153.6,3153.4,0.317]
[1731982264871,0.87452358,3153.7,3153.4,0.317]
[1731982265088,0.05543085,3153.6,3153.4,0.317]
[1731982265342,3.17107,3153.5,3153.4,0.317]
[1731982265928,3.17128,3153.3,3153.1,0.317]
[1731982266248,3.17138,3153.2,3153.1,0.317]
[1731982266407,0.05532093,3153.2,3153.1,0.317]
[1731982266608,3.92288,3153.3,3153.1,0.317]
[1731982266934,3.17149,3153.1,3152.9,0.317]
[1731982267525,0.05527404,3153.0,3152.9,0.317]
[1731982267924,0.05527404,3153.0,3152.7,0.317]
[1731982268328,0.05527404,3153.0,3152.7,3.48886]
[1731982268832,3.92288,3153.3,3152.7,3.48886]
[1731982269033,0.0552506,3152.9,3152.8,3.48878]
[1731982269186,0.7516,3153.3,3152.8,3.48878]
[1731982269385,0.0552506,3152.9,3152.8,3.48878]
[1731982269628,3.92289,3153.3,3152.8,3.48878]
[1731982270138,0.05532093,3153.2,3152.8,3.17188]
[1731982270306,0.05532093,3153.2,3153.0,0.317]
[1731982270486,3.1711,3153.5,3153.0,0.317]
[1731982270683,0.05534334,3153.4,3153.0,0.317]
[1731982272613,3.22655334,3153.4,3153.0,0.317]
[1731982273124,0.82274334,3153.4,3153.0,0.317]
[1731982273326,0.82274334,3153.4,3152.9,0.317]
[1731982273514,3.99400334,3153.4,3152.9,0.317]
[1731982274127,3.99400334,3153.4,3152.9,3.48867]
[1731982274452,0.05534334,3153.4,3153.1,0.317]
[1731982274811,0.7998,3153.7,3153.1,0.317]
[1731982275032,0.05532277,3153.3,3153.1,0.317]
[1731982275353,3.9707,3153.7,3153.3,0.317]
[1731982276292,3.9707,3153.7,3153.2,0.317]
[1731982276470,3.17099,3153.6,3153.2,0.317]
[1731982276617,3.17128,3153.3,3153.2,0.317]
[1731982276814,0.83512358,3153.3,3153.2,0.317]
[1731982277072,0.397079,3153.5,3153.2,0.317]
[1731982277073,1.168779,3153.5,3153.2,0.317]
[1731982277213,0.7717,3153.5,3153.1,0.317]
[1731982277411,3.17099,3153.6,3153.1,0.317]
[1731982277636,3.17138,3153.2,3153.1,0.317]
[1731982277839,3.17123,3153.4,3153.1,0.317]
[1731982278064,6.34249,3153.4,3153.1,0.317]
[1731982278270,3.565268,3153.6,3153.0,0.317]
[1731982278449,6.34209,3153.6,3153.0,0.317]
[1731982278767,3.17102,3153.6,3153.0,3.48848]
[1731982278956,3.947,3154.0,3153.2,1.48969887]
[1731982279113,3.947,3154.0,3153.5,3.48806]
[1731982279114,3.1706,3154.0,3153.5,3.48806]
[1731982279312,3.1706,3154.0,3153.3,0.82741711]
[1731982279313,3.50166139,3154.3,3153.9,0.317]
[1731982279560,0.06342358,3154.2,3153.9,0.317]
[1731982279739,3.17048,3154.1,3153.9,0.317]
[1731982280866,3.23379358,3154.2,3153.9,0.317]
[1731982281066,0.06342358,3154.2,3153.9,0.317]
[1731982281228,3.1705,3154.1,3153.9,0.317]
[1731982281430,0.86772358,3154.0,3153.5,0.317]
[1731982281756,3.17068,3153.9,3153.5,0.317]
[1731982282080,3.97489,3154.0,3153.5,0.317]
[1731982283274,1.518839,3154.0,3153.5,0.317]
[1731982283474,1.518839,3154.0,3152.8,3.0]
[1731982283475,3.1712,3153.4,3153.2,0.317]
[1731982284656,3.92819,3153.5,3153.2,0.317]
[1731982285469,0.7571,3153.5,3153.2,0.317]
[1731982285637,3.17119,3153.4,3153.2,0.317]
[1731982286230,6.34246,3153.4,3153.2,0.317]
[1731982286472,3.17119,3153.4,3153.3,0.317]
[1731982287444,6.34245,3153.4,3152.9,0.317]
[1731982287645,3.17119,3153.4,3152.9,0.317]
[1731982287842,3.1713,3153.3,3152.9,0.317]
[1731982288566,0.05531987,3153.2,3152.9,0.317]
[1731982289076,3.1713,3153.3,3152.9,0.317]
[1731982289232,0.05528905,3153.1,3152.9,0.317]
[1731982289428,3.17138,3153.2,3152.9,0.317]
[1731982289931,0.05528617,3153.1,3152.9,0.317]
[1731982290129,3.17138,3153.2,3152.9,0.26171383]
[1731982290328,0.05344258,3153.1,3152.9,0.317]
[1731982293496,3.17119,3153.4,3152.9,0.317]
[1731982293698,0.05341914,3153.0,3152.9,0.317]
[1731982293894,3.17134,3153.3,3152.9,0.317]
[1731982294396,0.05346422,3153.2,3152.9,0.317]
[1731982294808,3.17134,3153.3,3152.9,0.317]
[1731982295093,0.05344078,3153.1,3152.9,0.317]
[1731982295301,3.17134,3153.3,3152.9,0.317]
[1731982295599,3.17141,3153.2,3152.9,0.317]
[1731982295756,3.22487422,3153.2,3152.9,0.317]
[1731982297671,3.1715,3153.1,3152.9,0.317]
[1731982298073,3.17122,3153.4,3152.9,0.317]
[1731982298074,0.0534105,3153.0,3152.9,0.317]
[1731982298478,3.17138,3153.2,3152.9,0.317]
[1731982298679,0.05340978,3153.0,3152.9,0.317]
[1731982298878,6.34285,3153.2,3152.9,0.317]
[1731982299080,0.05340978,3153.0,3152.9,0.317]
[1731982299258,3.17158,3153.0,3152.6,1.1363]
[1731982299458,3.22498978,3153.0,3152.6,1.884349]
[1731982300073,0.05340978,3153.0,3152.6,1.884349]
[1731982300274,6.34284,3153.2,3152.6,1.567349]
[1731982300475,0.05160601,3152.9,3152.7,0.317]
[1731982300663,3.17149,3153.1,3152.7,0.317]
[1731982300887,0.05158256,3152.8,3152.7,0.317]
[1731982301088,3.17126,3153.4,3152.7,3.48882]
[1731982301303,0.05158256,3152.8,3152.7,3.48882]
[1731982301797,3.23481358,3153.2,3152.7,0.317]
[1731982301960,0.05158256,3152.8,3152.7,0.317]
[1731982302167,3.23481358,3153.2,3152.7,0.317]
[1731982302479,0.05158256,3152.8,3152.7,0.317]
[1731982302680,3.23481358,3153.2,3152.7,0.317]
[1731982302868,0.05158256,3152.8,3152.7,0.317]
[1731982303068,3.23481358,3153.2,3152.7,3.48884]
[1731982303305,0.05158256,3152.8,3152.7,3.48884]
[1731982303508,3.23472358,3153.3,3152.7,3.919654]
[1731982303824,3.23472358,3153.3,3152.7,3.48884]
[1731982304105,0.05167634,3153.2,3152.7,3.48884]
[1731982304608,3.22306634,3153.2,3152.7,3.48884]
[1731982308622,3.17148,3153.1,3152.7,0.317]
[1731982308923,0.05162475,3153.0,3152.7,0.317]
[1731982309577,3.17148,3153.1,3152.7,0.317]
[1731982309780,0.05160131,3152.9,3152.7,0.317]
[1731982310028,3.17139,3153.2,3152.7,0.317]
[1731982310332,3.17121,3153.4,3152.6,3.99128]
[1731982310333,2.95963764,3153.1,3152.6,3.99128]
[1731982310527,3.00956657,3153.1,3152.7,0.317]
[1731982314730,0.04992893,3153.1,3152.7,0.317]
[1731982315086,3.17138,3153.2,3152.7,0.317]
[1731982315385,0.04992893,3153.1,3152.7,0.317]
[1731982316325,0.04992893,3153.1,3152.9,0.317]
[1731982316707,6.34264,3153.3,3152.9,0.317]
[1731982317329,0.04995237,3153.2,3152.7,0.317]
[1731982317629,0.04995237,3153.2,3152.7,3.48888]
[1731982320137,0.04995237,3153.2,3153.0,1.1061]
[1731982320500,3.92823,3153.5,3153.0,1.1061]
[1731982320702,0.0499221,3153.1,3153.0,1.1061]
[1731982320924,3.17119,3153.4,3153.0,1.1061]
[1731982321109,0.0499221,3153.1,3153.0,1.1061]
[1731982321312,3.17119,3153.4,3153.0,1.1061]
[1731982321533,0.0499221,3153.1,3153.0,1.1061]
[1731982322005,3.92823,3153.5,3153.0,1.1061]
[1731982322203,0.0499221,3153.1,3153.0,1.1061]
[1731982322400,3.92823,3153.5,3153.0,1.1061]
[1731982322643,0.0499221,3153.1,3153.0,0.317]
[1731982322830,3.92823,3153.5,3153.0,0.317]
[1731982323009,0.0499221,3153.1,3153.0,0.317]
[1731982323209,3.92823,3153.5,3153.0,0.317]
[1731982323418,0.0499221,3153.1,3153.0,0.317]
[1731982323623,3.92823,3153.5,3153.0,0.317]
[1731982323845,0.0499221,3153.1,3153.0,0.317]
[1731982324153,3.17118,3153.4,3153.0,0.317]
[1731982324355,0.0499221,3153.1,3153.0,0.317]
[1731982324855,3.17118,3153.4,3153.0,0.317]
[1731982325008,0.0499221,3153.1,3153.0,0.317]
[1731982325206,3.92823,3153.5,3153.0,0.317]
[1731982325434,0.0499221,3153.1,3153.0,0.317]
[1731982325702,3.92823,3153.5,3153.0,0.317]
[1731982325916,0.0499221,3153.1,3153.0,0.317]
[1731982326123,3.92823,3153.5,3153.0,0.317]
[1731982326341,0.0499221,3153.1,3153.0,0.317]
[1731982326853,3.92823,3153.5,3153.0,0.317]
[1731982327061,0.0499221,3153.1,3153.0,0.317]
[1731982327347,3.92823,3153.5,3153.0,0.317]
[1731982327561,0.0499221,3153.1,3153.0,0.317]
[1731982327724,3.92823,3153.5,3153.0,0.317]
[1731982327907,0.0499221,3153.1,3153.0,0.317]
[1731982328109,3.92823,3153.5,3153.0,0.317]
[1731982328308,0.0499221,3153.1,3153.0,0.317]
[1731982328524,3.92823,3153.5,3153.0,0.317]
[1731982329035,0.04999242,3153.4,3153.0,0.317]
[1731982330049,0.04999242,3153.4,3153.3,0.317]
[1731982330353,0.8301,3154.0,3153.5,0.317]
[1731982330557,3.17068,3153.9,3153.5,0.317]
[1731982331607,3.17095,3153.7,3153.5,0.317]
[1731982331847,6.29600578,3154.0,3153.2,1.1016]
[1731982332020,3.17088,3153.7,3153.2,1.1016]
[1731982332222,0.06342358,3153.6,3153.2,1.1016]
[1731982333761,0.04833289,3153.5,3153.2,1.1016]
[1731982334629,0.04833289,3153.5,3153.2,4.27292]
[1731982334826,0.04833289,3153.5,3153.2,1.1016]
[1731982335274,0.04833289,3153.5,3153.2,0.317]
[1731982336643,3.21945289,3153.5,3153.1,0.317]
[1731982336819,3.1713,3153.3,3153.1,0.317]
[1731982337247,0.04826777,3153.2,3153.1,0.317]
[1731982337558,3.1713,3153.3,3153.1,0.317]
[1731982337755,0.04826227,3153.2,3152.9,0.317]
[1731982338127,3.1713,3153.3,3152.9,0.317]
[1731982338334,0.04823882,3153.1,3152.9,0.317]
[1731982338656,0.04821538,3153.0,3152.9,0.317]
[1731982338842,3.1713,3153.3,3152.9,0.317]
[1731982339047,0.04821538,3153.0,3152.9,0.317]
[1731982339344,3.1713,3153.3,3152.9,0.317]
[1731982339548,0.04821538,3153.0,3152.9,0.317]
[1731982339719,3.1713,3153.3,3152.9,0.317]
[1731982339919,0.04821538,3153.0,3152.9,0.317]
[1731982340150,3.1713,3153.3,3152.9,0.317]
[1731982340364,0.04821538,3153.0,3152.9,0.317]
[1731982340570,3.1713,3153.3,3152.9,0.317]
[1731982340768,0.04821538,3153.0,3152.9,0.317]
[1731982341223,3.17154,3153.1,3152.9,0.317]
[1731982341422,0.04821538,3153.0,3152.9,0.317]
[1731982342648,3.17131,3153.3,3152.9,0.317]
[1731982342970,0.04820917,3153.0,3152.9,0.317]
[1731982343265,0.04820917,3153.0,3152.7,0.317]
[1731982343465,3.9227,3153.2,3152.7,0.317]
[1731982343666,0.04818573,3152.9,3152.7,0.317]
[1731982343866,3.9227,3153.2,3152.7,0.317]
[1731982344041,0.04816228,3152.8,3152.7,0.317]
[1731982344243,3.92276,3153.2,3152.7,0.8079092]
[1731982344463,0.04816228,3152.8,3152.7,0.317]
[1731982344645,3.92276,3153.2,3152.7,0.317]
[1731982344963,0.04816228,3152.8,3152.7,0.317]
[1731982345146,3.92276,3153.2,3152.7,0.8079072]
[1731982345355,0.04816228,3152.8,3152.7,0.8079072]
[1731982345532,3.92276,3153.2,3152.7,0.8079072]
[1731982345731,0.04816228,3152.8,3152.7,0.8079072]
[1731982345942,3.92276,3153.2,3152.9,0.317]
[1731982346234,3.92276,3153.2,3153.1,0.317]
[1731982347121,3.92276,3153.2,3153.1,0.23763752]
[1731982347325,3.92276,3153.2,3153.1,0.55463752]
[1731982348696,3.97100803,3153.2,3153.1,0.55463752]
[1731982352221,4.03443161,3153.2,3153.1,0.55463752]
[1731982352366,3.97100803,3153.2,3153.1,0.55463752]
[1731982355992,3.17166,3153.0,3152.7,0.317]
[1731982356325,3.17166,3153.0,3152.9,0.317]
[1731982356523,3.17166,3153.0,3152.9,0.55453687]
[1731982358930,3.17166,3153.0,3152.9,0.55450276]
[1731982359230,3.17166,3153.0,3152.9,0.317]
[1731982360334,3.17166,3153.0,3152.7,0.317]
[1731982360538,3.1717,3152.9,3152.7,0.317]
[1731982361338,0.04813709,3152.8,3152.7,0.317]
[1731982362499,3.21991709,3152.8,3152.7,0.317]
[1731982363685,3.17191,3152.7,3152.3,0.317]
[1731982364130,0.04808475,3152.6,3152.3,0.317]
[1731982367344,3.22007475,3152.6,3152.3,0.317]
[1731982368947,0.04808475,3152.6,3152.3,0.317]
[1731982370642,3.22006475,3152.6,3152.3,0.317]
[1731982372117,0.04808475,3152.6,3152.3,0.317]
[1731982373022,3.22015475,3152.6,3152.3,0.317]
[1731982373219,3.28354833,3152.6,3152.2,0.317]
[1731982373439,6.40768358,3152.5,3152.2,0.317]
[1731982373653,6.45572441,3152.5,3152.2,0.317]
[1731982373813,3.17219,3152.4,3152.2,0.317]
[1731982374203,0.04799392,3152.3,3152.2,0.317]
[1731982374328,0.04799392,3152.3,3152.1,0.317]
[1731982376353,3.17204,3152.6,3152.1,0.317]
[1731982376667,3.17208,3152.5,3152.1,0.317]
[1731982376817,3.21851896,3152.5,3152.1,0.317]
[1731982377842,0.04643896,3152.5,3152.1,0.317]
[1731982378063,3.17226,3152.4,3151.8,4.27888]
[1731982378271,3.28209434,3152.4,3151.8,4.27888]
[1731982379329,3.28209434,3152.4,3151.8,1.1061]
[1731982379330,0.7927,3152.3,3151.8,1.1061]
[1731982379535,3.17249,3152.1,3151.7,0.317]
[1731982379843,0.04629952,3152.0,3151.7,0.317]
[1731982380045,0.04629952,3152.0,3151.7,3.48987]
[1731982380368,0.7927,3152.3,3151.7,3.48987]
[1731982380583,0.7927,3152.3,3151.9,0.317]
[1731982380736,1.3687,3152.8,3152.1,0.317]
[1731982380938,3.17219,3152.4,3152.1,0.317]
[1731982382777,3.17245,3152.2,3151.8,0.317]
[1731982383138,0.06342358,3152.1,3151.8,0.317]
[1731982383539,0.06342358,3152.1,3151.7,0.317]
[1731982384336,3.17262,3152.0,3151.7,0.317]
[1731982384537,3.99142,3152.0,3151.6,0.317]
[1731982384862,3.1727,3151.9,3151.6,0.317]
[1731982385031,3.99142,3152.0,3151.6,0.317]
[1731982387579,3.1727,3151.9,3151.6,0.317]
[1731982387906,3.99142,3152.0,3151.6,0.317]
[1731982389092,3.17283,3151.8,3151.7,0.317]
[1731982390213,3.17273,3151.9,3151.4,0.317]
[1731982390414,3.17284,3151.8,3151.4,0.317]
[1731982392011,0.06342358,3151.7,3151.3,0.317]
[1731982392170,3.23632358,3151.7,3151.3,0.317]
[1731982392375,6.40930358,3151.7,3151.3,0.317]
[1731982392575,3.1729,3151.7,3151.3,0.317]
[1731982392807,3.17299,3151.6,3151.3,0.317]
[1731982393017,3.17299,3151.6,3151.4,0.317]
[1731982393218,0.7513,3151.6,3151.4,0.317]
[1731982393445,0.399164,3151.8,3151.4,0.317]
[1731982393712,3.92405,3151.9,3151.4,0.317]
[1731982394016,0.04608253,3151.7,3151.6,3.48992]
[1731982394230,0.04610015,3151.8,3151.6,3.48992]
[1731982394405,0.04607668,3151.7,3151.6,3.48992]
[1731982394611,0.04607668,3151.7,3151.6,0.31458052]
[1731982394904,0.04607085,3151.7,3151.6,0.31458052]
[1731982395212,3.99366,3152.1,3151.6,0.31458052]
[1731982395421,0.04607085,3151.7,3151.6,0.31458052]
[1731982395579,3.99366,3152.1,3151.6,0.31458052]
[1731982395776,0.04607085,3151.7,3151.6,0.31458052]
[1731982395977,3.99366,3152.1,3151.6,0.31458052]
[1731982396492,0.04614125,3152.0,3151.6,0.31458052]
[1731982398121,0.04614125,3152.0,3151.6,3.48756052]
[1731982399152,3.28221483,3152.0,3151.6,0.31458052]
[1731982399900,0.10956483,3152.0,3151.6,0.31458052]
[1731982400108,0.04614125,3152.0,3151.6,0.31458052]
[1731982400634,3.21873125,3152.0,3151.6,0.31458052]
[1731982400817,0.06342358,3151.9,3151.6,0.31458052]
[1731982401014,3.21873125,3152.0,3151.6,0.31458052]
[1731982401214,0.0461926,3151.8,3151.6,0.31458052]
[1731982401405,3.17259,3152.0,3151.6,0.31458052]
[1731982401599,0.04616913,3151.7,3151.6,0.31458052]
[1731982401828,0.8211,3152.1,3151.6,0.31458052]
[1731982402033,0.04616913,3151.7,3151.6,3.48757052]
[1731982402256,0.8211,3152.1,3151.6,3.48757052]
[1731982402435,0.04616913,3151.7,3151.6,3.48757052]
[1731982402906,0.8211,3152.1,3151.6,3.48757052]
[1731982403106,0.04624352,3152.0,3151.6,3.48757052]
[1731982403854,0.04624352,3152.0,3151.6,0.31458052]
[1731982404153,0.04624352,3152.0,3151.8,0.31216104]
[1731982404448,3.17244,3152.2,3151.8,0.31216104]
[1731982404617,0.04622006,3151.9,3151.8,0.31216104]
[1731982404817,3.17244,3152.2,3151.8,0.31216104]
[1731982405033,0.04624052,3151.9,3151.8,0.31216104]
[1731982405235,3.17253,3152.1,3151.8,0.31216104]
[1731982405407,0.04623337,3151.9,3151.8,0.31216104]
[1731982405609,3.17253,3152.1,3151.8,0.31216104]
[1731982405851,0.04624198,3151.9,3151.8,0.31216104]
[1731982406023,3.489783,3152.1,3151.6,0.31216104]
[1731982406363,0.04472267,3152.0,3151.8,0.31216104]
[1731982406539,0.04472267,3152.0,3151.9,4.26894104]
[1731982406720,5.78854503,3152.9,3152.6,0.31216104]
[1731982406721,0.33141812,3152.9,3152.6,0.31216104]
[1731982406918,3.94364,3153.1,3152.6,0.31216104]
[1731982406919,0.04475177,3152.8,3152.6,0.31216104]
[1731982407123,0.7721,3153.1,3152.6,0.31216104]
[1731982407421,3.21511141,3153.0,3152.6,0.31216104]
[1731982407622,6.38677141,3153.0,3152.6,0.31216104]
[1731982407809,6.38677141,3153.0,3152.4,0.31216104]
[1731982408008,3.21511141,3153.0,3152.4,0.31216104]
[1731982408912,3.21511141,3153.0,3152.4,3.48433104]
[1731982409603,3.21511141,3153.0,3152.4,0.31216104]
[1731982409810,0.04346141,3153.0,3152.6,0.31216104]
[1731982410111,0.04346141,3153.0,3152.8,3.48393104]
[1731982410308,0.8295,3153.4,3153.0,0.31216104]
[1731982410509,0.04357552,3153.3,3153.0,3.48365104]
[1731982410738,0.317101,3153.5,3153.0,6.65515104]
[1731982410918,0.04362526,3153.4,3153.0,3.48365104]
[1731982411135,0.47974889,3153.4,3153.0,3.48365104]
[1731982412107,0.47974889,3153.4,3153.2,0.31216104]
[1731982413913,1.29537247,3153.4,3153.3,0.31216104]
[1731982414113,5.64007977,3153.4,3153.3,0.31216104]
[1731982414313,5.01655247,3153.4,3153.3,0.31216104]
[1731982414546,6.19007977,3153.4,3153.3,0.31216104]
[1731982414858,6.19007977,3153.4,3152.7,0.31216104]
[1731982415010,3.17144,3153.2,3152.7,0.31216104]
[1731982415415,3.2151259,3153.1,3152.7,0.31216104]
[1731982416553,3.2151259,3153.1,3152.6,0.31216104]
[1731982417683,0.0435859,3153.1,3152.9,0.31216104]
[1731982418032,3.92345,3153.4,3152.9,0.31216104]
[1731982418227,0.04345085,3153.0,3152.9,0.31216104]
[1731982418473,3.17135,3153.3,3152.9,0.31216104]
[1731982418685,0.04344318,3153.0,3152.9,0.31216104]
[1731982419032,3.92344,3153.4,3152.9,0.31216104]
[1731982419229,0.04344318,3153.0,3152.9,0.31216104]
[1731982419475,3.92344,3153.4,3152.9,0.31216104]
[1731982419672,0.04344318,3153.0,3152.9,0.31216104]
[1731982419857,0.7522,3153.4,3152.9,4.27033104]
[1731982420057,0.04338634,3153.0,3152.9,4.27033104]
[1731982420436,0.7522,3153.4,3152.9,4.27033104]
[1731982420631,0.04344089,3153.0,3152.9,4.27033104]
[1731982420880,3.17108,3153.5,3153.1,0.31216104]
[1731982421382,0.8315,3153.6,3153.1,0.31216104]
[1731982421669,4.00249,3153.6,3153.1,0.31216104]
[1731982422374,3.17082,3153.8,3153.3,0.31216104]
[1731982422576,3.17082,3153.8,3153.3,1.10126104]
[1731982422782,0.397802,3153.7,3153.3,1.10126104]
[1731982423462,0.04355036,3153.6,3153.3,1.10126104]
[1731982423845,0.04355036,3153.6,3153.3,4.27252104]
[1731982424286,0.7707,3154.1,3153.5,0.31216104]
[1731982424454,0.49483164,3154.0,3153.5,0.31216104]
[1731982424646,3.66544164,3154.0,3153.5,0.31216104]
[1731982424983,3.17069,3153.9,3153.5,0.31216104]
[1731982425484,3.17094,3153.7,3153.4,0.31216104]
[1731982425797,3.17107,3153.5,3153.4,0.31216104]
[1731982425991,3.72107,3153.5,3153.4,0.31216104]
[1731982426151,3.76478736,3153.5,3153.4,0.31216104]
[1731982426504,0.7861,3153.2,3152.9,0.31216104]
[1731982426838,3.17158,3153.0,3152.9,0.31216104]
[1731982427146,3.21518016,3153.0,3152.9,0.31216104]
[1731982427349,3.21518016,3153.0,3152.5,3.96111]
[1731982427350,3.21518016,3153.0,3152.6,0.31216104]
[1731982428350,0.04360016,3153.0,3152.6,0.31216104]
[1731982428550,3.17145,3153.2,3152.8,0.31216104]
[1731982428773,0.04359877,3153.1,3152.8,0.31216104]
[1731982430249,3.98762,3153.4,3152.8,0.31216104]
[1731982430448,0.04364675,3153.3,3152.8,0.31216104]
[1731982431680,0.04364675,3153.3,3152.8,3.48392104]
[1731982432003,0.04364675,3153.3,3153.0,0.31216104]
[1731982432675,0.04364675,3153.3,3153.2,0.31216104]
[1731982433008,3.17085,3153.8,3153.2,3.83189814]
[1731982433192,0.04356277,3153.3,3153.2,4.27255104]
[1731982433397,3.92385,3154.0,3153.5,0.31216104]
[1731982433717,0.04364722,3153.9,3153.5,0.31216104]
[1731982434363,0.04364722,3153.9,3153.7,1.10126104]
[1731982434565,0.86501588,3154.1,3153.7,1.10126104]
[1731982434867,0.04367832,3154.0,3153.7,4.27211104]
[1731982436309,0.04367832,3154.0,3153.7,1.10126104]
[1731982437686,0.04367832,3154.0,3153.7,4.27213104]
[1731982439767,0.04367832,3154.0,3153.7,1.10126104]
[1731982439972,3.21424832,3154.0,3153.7,1.10126104]
[1731982440184,0.04367832,3154.0,3153.7,1.10126104]
[1731982440408,0.04367832,3154.0,3153.8,0.31216104]
[1731982440409,4.01385358,3153.9,3153.8,0.31216104]
[1731982440908,4.0567708,3153.9,3153.8,0.31216104]
[1731982441422,3.17083,3153.8,3153.3,0.31216104]
[1731982441772,0.04289153,3153.7,3153.3,0.31216104]
[1731982441992,3.17083,3153.8,3153.3,0.31216104]
[1731982442197,0.04286809,3153.6,3153.3,0.31216104]
[1731982442425,0.04289153,3153.7,3153.3,0.31216104]
[1731982442637,0.04283727,3153.5,3153.3,0.31216104]
[1731982442943,0.04281383,3153.4,3153.3,0.31216104]